fUSD/lending_fUSD_20251017
["ID","MTS","AMOUNT","RATE_DAILY","PERIOD"]
[391634497,1760712646785,-500.0,0.00024657,2]
[391634498,1760712646794,-500.0,0.00024657,2]
[391634499,1760712646803,-151.0,0.00024657,7]
[391634500,1760712646812,-151.0,0.00024657,7]
[391634501,1760712646821,-288.23369462,0.00024657,2]
[391634502,1760712646831,-151.0,0.00024657,7]
[391634503,1760712646840,-151.0,0.00024657,7]
[391634504,1760712646849,-500.0,0.00024657,2]
[391634505,1760712646858,-158.858027,0.00024657,2]
[391634506,1760712646867,-239.77051353,0.00024657,2]
[391634507,1760712646876,-500.0,0.00024657,2]
[391634508,1760712646885,-151.0,0.00024657,7]
[391634509,1760712646894,-151.0,0.00024657,7]
[391634510,1760712646903,-272.307507,0.00024657,7]
[391634512,1760712646913,-151.0,0.00024657,7]
[391634513,1760712646922,-272.307507,0.00024657,7]
[391634514,1760712646931,-151.0,0.00024657,7]
[391634515,1760712646940,-151.0,0.00024657,7]
[391634516,1760712646949,-151.0,0.00024657,7]
[391634518,1760712646958,-151.0,0.00024657,7]
[391634519,1760712646968,-272.307507,0.00024657,7]
[391634520,1760712646977,-203.95374748,0.00024657,2]
[391634521,1760712646986,-500.0,0.00024657,2]
[391634522,1760712646995,-151.0,0.00024657,7]
[391634523,1760712647004,-151.0,0.00024657,7]
[391634524,1760712647013,-272.307507,0.00024657,7]
[391634525,1760712647022,-500.0,0.00024657,2]
[391634526,1760712647031,-151.0,0.00024657,7]
[391634527,1760712647039,-151.0,0.00024657,7]
[391634528,1760712647048,-151.0,0.00024657,7]
[391634529,1760712647057,-551.09659333,0.00024657,2]
[391634530,1760712647066,-151.0,0.00024657,7]
[391634531,1760712647075,-501.03620469,0.00024657,2]
[391634532,1760712647084,-495.84736648,0.00024657,2]
[391634533,1760712647093,-500.0,0.00024657,2]
[391634534,1760712647102,-500.0,0.00024657,2]
[391634535,1760712647111,-500.65035646,0.00024657,2]
[391634536,1760712647120,-500.0,0.00024657,2]
[391634537,1760712647129,-500.0,0.00024657,2]
[391634538,1760712647138,-500.0,0.00024657,2]
[391634539,1760712647147,-500.0,0.00024657,2]
[391634540,1760712647157,-500.64172029,0.00024657,2]
[391634541,1760712647166,-500.0,0.00024657,2]
[391634542,1760712647175,-500.0,0.00024657,2]
[391634543,1760712647184,-500.57384163,0.00024657,2]
[391634544,1760712647192,-501.15199152,0.00024657,2]
[391634545,1760712647201,-500.0,0.00024657,2]
[391634546,1760712647211,-541.7723349,0.00024657,2]
[391634547,1760712647220,-151.0,0.00024657,7]
[391634548,1760712647229,-500.29088162,0.00024657,2]
[391634549,1760712647238,-500.0,0.00024657,2]
[391634550,1760712647247,-500.0,0.00024657,2]
[391634551,1760712647256,-501.30160676,0.00024657,2]
[391634552,1760712647265,-500.0,0.00024657,2]
[391634553,1760712647274,-616.40146017,0.00024657,2]
[391634554,1760712647282,-500.0,0.00024657,2]
[391634555,1760712647292,-500.0,0.00024657,2]
[391634556,1760712647301,-500.0,0.00024657,2]
[391634557,1760712647310,-500.43136695,0.00024657,2]
[391634558,1760712647325,-151.0,0.00024657,7]
[391634559,1760712647339,-500.0,0.00024657,2]
[391634560,1760712647350,-392.41379659,0.00024657,2]
[391634561,1760712647361,-504.16726463,0.00024657,2]
[391634562,1760712647371,-151.0,0.00024657,7]
[391634563,1760712647382,-500.0,0.00024657,2]
[391634564,1760712647394,-406.37951371,0.00024657,2]
[391634565,1760712647405,-151.0,0.00024657,7]
[391634566,1760712647416,-500.0,0.00024657,2]
[391634567,1760712647429,-151.0,0.00024657,7]
[391634568,1760712647440,-500.63915233,0.00024657,2]
[391634569,1760712647452,-500.0,0.00024657,2]
[391634570,1760712647465,-500.75881101,0.00024657,2]
[391634571,1760712647476,-151.0,0.00024657,7]
[391634572,1760712647488,-500.0,0.00024657,2]
[391634573,1760712647498,-500.46304091,0.00024657,2]
[391634574,1760712647508,-500.0,0.00024657,2]
[391634575,1760712647519,-151.0,0.00024657,7]
[391634576,1760712647531,-642.2648725,0.00024657,2]
[391634577,1760712647543,-151.0,0.00024657,7]
[391634578,1760712647555,-501.01941496,0.00024657,2]
[391634579,1760712647567,-151.0,0.00024657,7]
[391634580,1760712647580,-500.96850897,0.00024657,2]
[391634581,1760712647592,-500.0,0.00024657,2]
[391634582,1760712647604,-151.0,0.00024657,7]
[391634583,1760712647619,-151.0,0.00024657,7]
[391634584,1760712647630,-579.63386595,0.00024657,2]
[391634585,1760712647642,-500.0,0.00024657,2]
[391634586,1760712647655,-151.0,0.00024657,7]
[391634587,1760712647667,-151.0,0.00024657,7]
[391634588,1760712647678,-500.0,0.00024657,2]
[391634589,1760712647690,-344.56436218,0.00024657,2]
[391634590,1760712647701,-500.0,0.00024657,2]
[391634591,1760712647711,-500.0,0.00024657,2]
[391634592,1760712647723,-500.0,0.00024657,2]
[391634594,1760712647734,-500.54988758,0.00024657,2]
[391634595,1760712647747,-500.0,0.00024657,2]
[391634596,1760712647759,-500.0,0.00024657,2]
[391634597,1760712647770,-151.0,0.00024657,7]
[391634598,1760712647781,-500.50828995,0.00024657,2]
[391634599,1760712647792,-151.0,0.00024657,7]
[391634600,1760712647802,-513.78194557,0.00024657,2]
[391634601,1760712647811,-500.41324134,0.00024657,2]
[391634602,1760712647824,-500.0,0.00024657,2]
[391634603,1760712647835,-501.32997437,0.00024657,2]
[391634604,1760712647849,-200.223905,0.00024657,7]
[391634605,1760712647861,-571.16516239,0.00024657,2]
[391634606,1760712647871,-501.56517377,0.00024657,2]
[391634607,1760712647881,-500.0,0.00024657,2]
[391634608,1760712647891,-870.27,0.00024657,2]
[391634609,1760712647902,-500.0,0.00024657,2]
[391634610,1760712647913,-500.71245767,0.00024657,2]
[391634611,1760712647925,-500.0,0.00024657,2]
[391634612,1760712647937,-500.33929245,0.00024657,2]
[391634613,1760712647947,-500.0,0.00024657,2]
[391634614,1760712647957,-500.0,0.00024657,2]
[391634615,1760712647967,-500.76908748,0.00024657,2]
[391634616,1760712647977,-502.03334673,0.00024657,2]
[391634617,1760712647987,-501.83045728,0.00024657,2]
[391634618,1760712647998,-500.99784966,0.00024657,2]
[391634619,1760712648008,-501.03046673,0.00024657,2]
[391634620,1760712648018,-361.3720228,0.00024657,2]
[391634621,1760712648029,-500.0,0.00024657,2]
[391634622,1760712648039,-500.0,0.00024657,2]
[391634623,1760712648050,-274.30063735,0.00024657,2]
[391634624,1760712648060,-500.0,0.00024657,2]
[391634625,1760712648071,-500.0,0.00024657,2]
[391634626,1760712648082,-500.0,0.00024657,2]
[391634627,1760712648093,-500.0,0.00024657,2]
[391634628,1760712648104,-500.81542061,0.00024657,2]
[391634629,1760712648114,-500.46213989,0.00024657,2]
[391634630,1760712648125,-500.0,0.00024657,2]
[391634631,1760712648135,-500.0,0.00024657,2]
[391634632,1760712648146,-500.0,0.00024657,2]
[391634633,1760712648156,-500.0,0.00024657,2]
[391634635,1760712648167,-286.32284464,0.00024657,2]
[391634636,1760712648178,-500.90550034,0.00024657,2]
[391634637,1760712648188,-500.0,0.00024657,2]
[391634638,1760712648199,-562.13744123,0.00024657,2]
[391634639,1760712648209,-502.15417359,0.00024657,2]
[391634640,1760712648220,-158.46523598,0.00024657,2]
[391634641,1760712648231,-500.0,0.00024657,2]
[391634642,1760712648241,-202.18924263,0.00024657,2]
[391634643,1760712648251,-500.0,0.00024657,2]
[391634644,1760712648262,-586.19,0.00024657,2]
[391634645,1760712648272,-586.19,0.00024657,2]
[391634646,1760712648283,-508.57968299,0.00024657,2]
[391634647,1760712648294,-586.19,0.00024657,2]
[391634648,1760712648305,-586.19,0.00024657,2]
[391634649,1760712648316,-586.19,0.00024657,2]
[391634650,1760712648327,-586.19,0.00024657,2]
[391634651,1760712648337,-586.19,0.00024657,2]
[391634652,1760712648348,-586.19,0.00024657,2]
[391634653,1760712648358,-501.20306196,0.00024657,2]
[391634654,1760712648369,-586.19,0.00024657,2]
[391634655,1760712648380,-586.19,0.00024657,2]
[391634656,1760712648390,-511.20078781,0.00024657,2]
[391634657,1760712648401,-500.0,0.00024657,2]
[391634658,1760712648412,-500.0,0.00024657,2]
[391634659,1760712648425,-500.0,0.00024657,2]
[391634660,1760712648435,-500.0,0.00024657,2]
[391634661,1760712648446,-500.25567537,0.00024657,2]
[391634662,1760712648456,-500.0,0.00024657,2]
[391634663,1760712648467,-500.0,0.00024657,2]
[391634664,1760712648478,-152.444145,0.00024657,7]
[391634665,1760712648488,-500.0,0.00024657,2]
[391634666,1760712648499,-645.50844292,0.00024657,2]
[391634667,1760712648509,-500.0,0.00024657,2]
[391634668,1760712648520,-522.00273792,0.00024657,2]
[391634669,1760712648530,-500.0,0.00024657,2]
[391634670,1760712648540,-189.622013,0.00024657,7]
[391634671,1760712648551,-500.0,0.00024657,2]
[391634672,1760712648561,-189.622013,0.00024657,7]
[391634673,1760712648571,-510.11306466,0.00024657,2]
[391634674,1760712648583,-156.29877766,0.00024657,2]
[391634675,1760712648593,-151.0,0.00024657,7]
[391634676,1760712648603,-500.0,0.00024657,2]
[391634677,1760712648618,-410.422113,0.00024657,7]
[391634678,1760712648629,-189.622013,0.00024657,7]
[391634679,1760712648639,-500.89801814,0.00024657,2]
[391634680,1760712648650,-500.0,0.00024657,2]
[391634681,1760712648660,-500.0,0.00024657,2]
[391634682,1760712648671,-151.0,0.00024657,7]
[391634683,1760712648682,-189.622013,0.00024657,7]
[391634684,1760712648692,-410.422113,0.00024657,7]
[391634685,1760712648703,-500.0,0.00024657,2]
[391634686,1760712648713,-500.0,0.00024657,2]
[391634687,1760712648724,-410.422113,0.00024657,7]
[391634688,1760712648734,-500.0,0.00024657,2]
[391634689,1760712648744,-253.50900682,0.00024657,2]
[391634690,1760712648755,-410.422113,0.00024657,7]
[391634692,1760712648766,-151.0,0.00024657,7]
[391634693,1760712648776,-500.0,0.00024657,2]
[391634694,1760712648786,-542.06597762,0.00024657,2]
[391634695,1760712648797,-500.0,0.00024657,2]
[391634696,1760712648808,-500.0,0.00024657,2]
[391634697,1760712648818,-505.29722277,0.00024657,2]
[391634698,1760712648829,-500.0,0.00024657,2]
[391634699,1760712648840,-322.86195,0.00024657,7]
[391634700,1760712648855,-151.0,0.00024657,7]
[391634701,1760712648866,-322.86195,0.00024657,7]
[391634702,1760712648877,-500.0,0.00024657,2]
[391634703,1760712648887,-192.25074,0.00024657,7]
[391634704,1760712648898,-501.90414551,0.00024657,2]
[391634705,1760712648909,-500.0,0.00024657,2]
[391634706,1760712648919,-322.86195,0.00024657,7]
[391634707,1760712648930,-500.0,0.00024657,2]
[391634708,1760712648940,-192.25074,0.00024657,7]
[391634709,1760712648950,-500.0,0.00024657,2]
[391634710,1760712648960,-322.86195,0.00024657,7]
[391634711,1760712648970,-507.43175871,0.00024657,2]
[391634712,1760712648980,-192.25074,0.00024657,7]
[391634713,1760712648990,-1000.0,0.00024657,2]
[391634714,1760712649001,-500.0,0.00024657,2]
[391634715,1760712649012,-192.25074,0.00024657,7]
[391634716,1760712649023,-735.48,0.00024657,2]
[391634717,1760712649033,-501.31910156,0.00024657,2]
[391634718,1760712649044,-500.0,0.00024657,2]
[391634719,1760712649054,-500.0,0.00024657,2]
[391634720,1760712649065,-500.0,0.00024657,2]
[391634721,1760712649078,-405.54356136,0.00024657,2]
[391634722,1760712649089,-500.0,0.00024657,2]
[391634723,1760712649099,-1633.1,0.00024657,2]
[391634724,1760712649111,-500.0,0.00024657,2]
[391634725,1760712649122,-151.0,0.00024657,7]
[391634726,1760712649132,-500.0,0.00024657,2]
[391634727,1760712649143,-500.0,0.00024657,2]
[391634728,1760712649153,-500.0,0.00024657,2]
[391634729,1760712649164,-566.717086,0.00024657,2]
[391634730,1760712649174,-500.0,0.00024657,2]
[391634731,1760712649184,-500.0,0.00024657,2]
[391634732,1760712649194,-503.03993908,0.00024657,2]
[391634733,1760712649204,-500.0,0.00024657,2]
[391634734,1760712649215,-501.11307326,0.00024657,2]
[391634735,1760712649224,-400.06869535,0.00024657,2]
[391634736,1760712649235,-501.20325194,0.00024657,2]
[391634737,1760712649245,-645.03100762,0.00024657,2]
[391634738,1760712649254,-500.0,0.00024657,2]
[391634739,1760712649265,-501.21261752,0.00024657,2]
[391634740,1760712649275,-500.0,0.00024657,2]
[391634741,1760712649287,-500.0,0.00024657,2]
[391634742,1760712649297,-427.97576268,0.00024657,2]
[391634743,1760712649307,-500.0,0.00024657,2]
[391634744,1760712649317,-500.0,0.00024657,2]
[391634745,1760712649328,-500.0,0.00024657,2]
[391634746,1760712649339,-500.0,0.00024657,2]
[391634747,1760712649348,-401.55481026,0.00024657,2]
[391634748,1760712649358,-500.0,0.00024657,2]
[391634749,1760712649368,-500.0,0.00024657,2]
[391634750,1760712649379,-500.0,0.00024657,2]
[391634751,1760712649389,-500.0,0.00024657,2]
[391634752,1760712649399,-500.0,0.00024657,2]
[391634753,1760712649409,-500.0,0.00024657,2]
[391634754,1760712649419,-500.0,0.00024657,2]
[391634755,1760712649429,-500.0,0.00024657,2]
[391634756,1760712649439,-500.0,0.00024657,2]
[391634757,1760712649449,-500.0,0.00024657,2]
[391634758,1760712649459,-511.79599111,0.00024657,2]
[391634759,1760712649470,-500.0,0.00024657,2]
[391634760,1760712649480,-500.0,0.00024657,2]
[391634761,1760712649490,-216.32674483,0.00024657,2]
[391634762,1760712649500,-500.0,0.00024657,2]
[391634763,1760712649510,-500.0,0.00024657,2]
[391634764,1760712649521,-821.54,0.00024657,2]
[391634765,1760712649531,-151.0,0.00024657,7]
[391634766,1760712649541,-507.29423461,0.00024657,2]
[391634767,1760712649551,-500.0,0.00024657,2]
[391634768,1760712649561,-151.0,0.00024657,7]
[391634769,1760712649571,-538.95162284,0.00024657,2]
[391634770,1760712649583,-852.2,0.00024657,2]
[391634771,1760712649593,-665.63,0.00024657,2]
[391634772,1760712649603,-733.45,0.00024657,2]
[391634773,1760712649618,-500.0,0.00024657,2]
[391634774,1760712649628,-151.0,0.00024657,7]
[391634775,1760712649638,-151.0,0.00024657,7]
[391634776,1760712649648,-340.681494,0.00024657,7]
[391634777,1760712649659,-500.0,0.00024657,2]
[391634778,1760712649669,-151.0,0.00024657,7]
[391634779,1760712649681,-500.0,0.00024657,2]
[391634780,1760712649694,-340.681494,0.00024657,7]
[391634781,1760712649704,-340.681494,0.00024657,7]
[391634782,1760712649715,-340.681494,0.00024657,7]
[391634783,1760712649726,-2292.25,0.00024657,2]
[391634784,1760712649736,-500.0,0.00024657,2]
[391634785,1760712649747,-500.0,0.00024657,2]
[391634786,1760712649758,-500.0,0.00024657,2]
[391634787,1760712649768,-500.0,0.00024657,2]
[391634788,1760712649778,-500.0,0.00024657,2]
[391634789,1760712649789,-501.12232719,0.00024657,2]
[391634790,1760712650124,-500.0,0.00024657,2]
[391634791,1760712650145,-151.0,0.00024657,7]
[391634792,1760712650164,-501.03700927,0.00024657,2]
[391634793,1760712650179,-500.0,0.00024657,2]
[391634794,1760712650189,-957.62,0.00024657,2]
[391634795,1760712650198,-500.0,0.00024657,2]
[391634796,1760712650207,-500.0,0.00024657,2]
[391634797,1760712650216,-151.0,0.00024657,7]
[391634798,1760712650226,-505.65702261,0.00024657,2]
[391634799,1760712650235,-151.272493,0.00024657,7]
[391634800,1760712650244,-224.18672018,0.00024657,2]
[391634801,1760712650253,-500.0,0.00024657,2]
[391634802,1760712650262,-151.804908,0.00024657,7]
[391634803,1760712650271,-502.71372669,0.00024657,2]
[391634804,1760712650280,-500.0,0.00024657,2]
[391634805,1760712650289,-151.0,0.00024657,7]
[391634806,1760712650298,-500.0,0.00024657,2]
[391634807,1760712650308,-151.0,0.00024657,7]
[391634808,1760712650317,-500.0,0.00024657,2]
[391634809,1760712650328,-500.0,0.00024657,2]
[391634810,1760712650337,-500.0,0.00024657,2]
[391634811,1760712650345,-500.0,0.00024657,2]
[391634812,1760712650354,-500.0,0.00024657,2]
[391634813,1760712650363,-500.0,0.00024657,2]
[391634814,1760712650372,-151.0,0.00024657,7]
[391634815,1760712650380,-500.0,0.00024657,2]
[391634816,1760712650389,-500.92728374,0.00024657,2]
[391634817,1760712650398,-151.0,0.00024657,7]
[391634818,1760712650407,-500.0,0.00024657,2]
[391634819,1760712650415,-186.850404,0.00024657,7]
[391634820,1760712650424,-626.12865509,0.00024657,2]
[391634821,1760712650433,-500.0,0.00024657,2]
[391634822,1760712650442,-500.0,0.00024657,2]
[391634823,1760712650450,-500.0,0.00024657,2]
[391634824,1760712650459,-500.0,0.00024657,2]
[391634825,1760712650468,-151.0,0.00024657,7]
[391634826,1760712650477,-500.0,0.00024657,2]
[391634827,1760712650486,-500.0,0.00024657,2]
[391634828,1760712650495,-500.0,0.00024657,2]
[391634829,1760712650504,-507.526747,0.00024657,2]
[391634830,1760712650513,-500.0,0.00024657,2]
[391634831,1760712650522,-500.0,0.00024657,2]
[391634832,1760712650531,-151.0,0.00024657,7]
[391634833,1760712650541,-500.0,0.00024657,2]
[391634834,1760712650550,-501.05389334,0.00024657,2]
[391634835,1760712650559,-151.0,0.00024657,7]
[391634836,1760712650568,-500.0,0.00024657,2]
[391634837,1760712650578,-645.32,0.00024657,2]
[391634838,1760712650587,-500.0,0.00024657,2]
[391634839,1760712650600,-500.0,0.00024657,2]
[391634840,1760712650611,-500.0,0.00024657,2]
[391634841,1760712650621,-281.99076706,0.00024657,2]
[391634842,1760712650630,-500.0,0.00024657,2]
[391634843,1760712650639,-501.57016949,0.00024657,2]
[391634844,1760712650649,-500.0,0.00024657,2]
[391634845,1760712650657,-500.0,0.00024657,2]
[391634846,1760712650666,-500.0,0.00024657,2]
[391634847,1760712650675,-500.0,0.00024657,2]
[391634848,1760712650684,-500.0,0.00024657,2]
[391634849,1760712650694,-500.0,0.00024657,2]
[391634850,1760712650702,-500.0,0.00024657,2]
[391634851,1760712650711,-500.0,0.00024657,2]
[391634852,1760712650720,-164.37153426,0.00024657,2]
[391634853,1760712650729,-500.0,0.00024657,2]
[391634854,1760712650738,-500.64732089,0.00024657,2]
[391634855,1760712650747,-609.49,0.00024657,2]
[391634856,1760712650756,-609.49,0.00024657,2]
[391634857,1760712650765,-609.49,0.00024657,2]
[391634858,1760712650773,-609.49,0.00024657,2]
[391634859,1760712650782,-609.49,0.00024657,2]
[391634860,1760712650791,-609.49,0.00024657,2]
[391634861,1760712650800,-609.49,0.00024657,2]
[391634862,1760712650809,-500.0,0.00024657,2]
[391634863,1760712650818,-609.49,0.00024657,2]
[391634864,1760712650828,-1164.89,0.00024657,2]
[391634865,1760712650837,-609.49,0.00024657,2]
[391634866,1760712650845,-609.49,0.00024657,2]
[391634867,1760712650855,-500.0,0.00024657,2]
[391634868,1760712650863,-816.0,0.00024657,2]
[391634869,1760712650872,-151.0,0.00024657,7]
[391634870,1760712650881,-286.78368251,0.00024657,2]
[391634871,1760712650890,-816.0,0.00024657,2]
[391634872,1760712650900,-816.0,0.00024657,2]
[391634873,1760712650910,-816.0,0.00024657,2]
[391634874,1760712650919,-816.0,0.00024657,2]
[391634875,1760712650929,-816.0,0.00024657,2]
[391634876,1760712650938,-500.0,0.00024657,2]
[391634877,1760712650947,-816.0,0.00024657,2]
[391634878,1760712650957,-816.0,0.00024657,2]
[391634879,1760712650966,-4111.23,0.00024657,2]
[391634880,1760712650975,-816.0,0.00024657,2]
[391634881,1760712650984,-500.0,0.00024657,2]
[391634882,1760712650993,-816.0,0.00024657,2]
[391634883,1760712651003,-500.0,0.00024657,2]
[391634884,1760712651012,-1020.03,0.00024657,2]
[391634885,1760712651021,-300.0,0.00024657,2]
[391634886,1760712651030,-500.0,0.00024657,2]
[391634887,1760712651039,-151.0,0.00024657,7]
[391634888,1760712651048,-500.0,0.00024657,2]
[391634889,1760712651057,-2210.79,0.00024657,2]
[391634890,1760712651067,-611.76667201,0.00024657,2]
[391634891,1760712651078,-500.0,0.00024657,2]
[391634892,1760712651087,-500.0,0.00024657,2]
[391634893,1760712651096,-151.0,0.00024657,7]
[391634894,1760712651105,-500.0,0.00024657,2]
[391634895,1760712651115,-534.22573689,0.00024657,2]
[391634896,1760712651124,-1365.45,0.00024657,2]
[391634897,1760712651134,-151.0,0.00024657,7]
[391634898,1760712651143,-907.389663,0.00024657,7]
[391634899,1760712651153,-500.85495046,0.00024657,2]
[391634900,1760712651162,-500.0,0.00024657,2]
[391634901,1760712651171,-151.0,0.00024657,7]
[391634902,1760712651180,-907.389663,0.00024657,7]
[391634903,1760712651189,-151.0,0.00024657,7]
[391634904,1760712651198,-611.8797483,0.00024657,2]
[391634905,1760712651207,-907.389663,0.00024657,7]
[391634906,1760712651216,-500.0,0.00024657,2]
[391634907,1760712651225,-151.0,0.00024657,7]
[391634908,1760712651235,-500.0,0.00024657,2]
[391634909,1760712651244,-500.0,0.00024657,2]
[391634910,1760712651253,-500.0,0.00024657,2]
[391634911,1760712651263,-500.0,0.00024657,2]
[391634912,1760712651272,-907.389663,0.00024657,7]
[391634913,1760712651282,-500.0,0.00024657,2]
[391634914,1760712651292,-500.0,0.00024657,2]
[391634915,1760712651301,-500.0,0.00024657,2]
[391634916,1760712651310,-500.0,0.00024657,2]
[391634917,1760712651319,-500.0,0.00024657,2]
[391634918,1760712651330,-500.0,0.00024657,2]
[391634919,1760712651339,-500.0,0.00024657,2]
[391634920,1760712651348,-500.0,0.00024657,2]
[391634921,1760712651358,-500.0,0.00024657,2]
[391634922,1760712651367,-368.52,0.00024657,2]
[391634923,1760712651377,-500.0,0.00024657,2]
[391634924,1760712651386,-500.0,0.00024657,2]
[391634925,1760712651395,-500.0,0.00024657,2]
[391634926,1760712651404,-403.699079,0.00024657,7]
[391634927,1760712651413,-403.699079,0.00024657,7]
[391634928,1760712651422,-500.0,0.00024657,2]
[391634929,1760712651432,-500.0,0.00024657,2]
[391634930,1760712651441,-500.0,0.00024657,2]
[391634931,1760712651450,-503.29696172,0.00024657,2]
[391634932,1760712651459,-403.699079,0.00024657,7]
[391634933,1760712651468,-151.0,0.00024657,7]
[391634934,1760712651478,-500.0,0.00024657,2]
[391634935,1760712651486,-500.0,0.00024657,2]
[391634936,1760712651495,-500.0,0.00024657,2]
[391634937,1760712651504,-500.0,0.00024657,2]
[391634938,1760712651512,-403.699079,0.00024657,7]
[391634939,1760712651522,-501.78238902,0.00024657,2]
[391634940,1760712651531,-500.0,0.00024657,2]
[391634941,1760712651540,-236.67927,0.00024657,7]
[391634942,1760712651549,-1008.76,0.00024657,2]
[391634943,1760712651558,-500.0,0.00024657,2]
[391634944,1760712651567,-1563.72,0.00024657,2]
[391634945,1760712651576,-500.0,0.00024657,2]
[391634946,1760712651587,-151.0,0.00024657,7]
[391634947,1760712651597,-151.0,0.00024657,7]
[391634948,1760712651606,-236.67927,0.00024657,7]
[391634949,1760712651619,-500.0,0.00024657,2]
[391634950,1760712651627,-151.0,0.00024657,7]
[391634951,1760712651637,-500.0,0.00024657,2]
[391634952,1760712651646,-151.0,0.00024657,7]
[391634953,1760712651656,-500.0,0.00024657,2]
[391634954,1760712651665,-236.67927,0.00024657,7]
[391634955,1760712651674,-151.0,0.00024657,7]
[391634956,1760712651683,-500.0,0.00024657,2]
[391634957,1760712651694,-151.0,0.00024657,7]
[391634958,1760712651703,-441.81400673,0.00024657,2]
[391634959,1760712651712,-236.67927,0.00024657,7]
[391634960,1760712651721,-500.0,0.00024657,2]
[391634961,1760712651729,-1294.16,0.00024657,2]
[391634962,1760712651738,-151.0,0.00024657,7]
[391634963,1760712651747,-500.0,0.00024657,2]
[391634964,1760712651756,-500.0,0.00024657,2]
[391634965,1760712651765,-151.0,0.00024657,7]
[391634966,1760712651775,-500.0,0.00024657,2]
[391634967,1760712651783,-151.0,0.00024657,7]
[391634968,1760712651792,-500.0,0.00024657,2]
[391634969,1760712651802,-151.0,0.00024657,7]
[391634970,1760712651811,-151.0,0.00024657,7]
[391634971,1760712651820,-151.0,0.00024657,7]
[391634972,1760712651830,-616.97,0.00024657,2]
[391634973,1760712651839,-1973.58,0.00024657,2]
[391634974,1760712651848,-500.0,0.00024657,2]
[391634975,1760712651857,-2395.85,0.00024657,2]
[391634976,1760712651866,-500.71830403,0.00024657,2]
[391634977,1760712651875,-184.714614,0.00024657,7]
[391634978,1760712651884,-1000.0,0.00024657,2]
[391634979,1760712651894,-184.714614,0.00024657,7]
[391634980,1760712651903,-151.0,0.00024657,7]
[391634981,1760712651912,-500.0,0.00024657,2]
[391634982,1760712651921,-1381.874064,0.00024657,7]
[391634983,1760712651931,-184.714614,0.00024657,7]
[391634984,1760712651940,-501.62111246,0.00024657,2]
[391634985,1760712651949,-1381.874064,0.00024657,7]
[391634986,1760712651958,-184.714614,0.00024657,7]
[391634987,1760712651968,-500.0,0.00024657,2]
[391634988,1760712651977,-1381.874064,0.00024657,7]
[391634989,1760712651986,-1381.874064,0.00024657,7]
[391634990,1760712651995,-500.0,0.00024657,2]
[391634991,1760712652004,-152.6297442,0.00024657,7]
[391634992,1760712652013,-2145.9,0.00024657,2]
[391634993,1760712652022,-501.57197209,0.00024657,2]
[391634994,1760712652031,-304.32088472,0.00024657,2]
[391634995,1760712652040,-500.59214622,0.00024657,2]
[391634996,1760712652050,-500.0,0.00024657,2]
[391634997,1760712652059,-500.0,0.00024657,2]
[391634998,1760712652068,-151.0,0.00024657,7]
[391634999,1760712652077,-500.0,0.00024657,2]
[391635000,1760712652087,-151.0,0.00024657,7]
[391635001,1760712652095,-500.0,0.00024657,2]